{"text_format":"1","workbook":"xlsx","n_sheets":2,"sheets":["入力フォーム","請求書"],"not_rendered":{"charts":0,"images":1,"macros":1,"external_links":0,"defined_names":0,"comments":0,"pivot_tables":0},"unopened":[],"bounds":{"document_bytes":16777216,"sheet_cells":100000,"rows_first":2000,"rows_last":500,"rows_between":2000,"halvings":0,"cell_chars":16384,"cell_head_chars":4096},"cells_cut":0,"cells_raw":0,"read":"whole","date_system":"1900"}

{"sheet":"入力フォーム","index":0,"n_rows":33,"n_cols":209,"rows_kept":33,"cut":false,"hidden":false,"merged":[[4,53,5,79],[10,57,11,74],[30,97,31,117],[30,128,31,148],[22,83,23,96],[22,97,23,117],[22,128,23,148],[24,83,25,96],[24,97,25,117],[24,128,25,148],[18,83,19,96],[18,97,19,117],[18,128,19,148],[20,83,21,96],[20,97,21,117],[20,128,21,148],[28,118,29,127],[28,97,29,117],[28,128,29,148],[26,6,27,14],[26,15,27,67],[26,68,27,82],[26,83,27,96],[25,155,27,177],[24,118,25,127],[23,160,24,177],[24,6,25,14],[24,15,25,67],[24,68,25,82],[22,118,23,127],[19,178,20,207],[21,178,22,207],[23,178,24,207],[28,178,29,207],[28,155,29,177],[28,68,29,82],[28,83,29,96],[26,118,27,127],[26,97,27,117],[26,128,27,148],[21,160,22,177],[30,149,31,152],[30,155,31,177],[30,6,31,96],[30,118,31,127],[30,178,31,181],[30,182,31,207],[32,155,33,177],[19,160,20,177],[20,6,21,14],[20,15,21,67],[20,68,21,82],[18,118,19,127],[19,151,20,153],[19,155,24,159],[18,6,19,14],[18,15,19,67],[18,68,19,82],[25,178,27,197],[25,200,27,204],[25,198,27,199],[25,205,27,207],[32,178,33,207],[28,6,29,14],[28,15,29,67],[16,2,17,4],[16,6,17,14],[16,15,17,67],[16,68,17,82],[16,83,17,96],[16,97,17,117],[16,118,17,127],[16,128,17,148],[22,6,23,14],[22,15,23,67],[22,68,23,82],[20,118,21,127],[5,202,6,207],[5,158,6,201],[13,74,14,76],[13,42,14,73],[13,39,14,41],[16,156,17,159],[16,160,17,163],[12,210,16,210],[7,101,8,120],[7,41,8,43],[13,156,14,175],[16,164,17,167],[16,168,17,171],[16,179,17,194],[15,156,15,171],[15,179,15,194],[10,75,11,125],[10,129,10,134],[11,129,11,134],[10,143,11,147],[10,135,11,142],[13,147,14,151],[13,108,14,143],[10,208,11,209],[12,3,12,38],[12,42,12,73],[12,77,12,104],[12,108,12,143],[12,156,12,175],[12,179,12,190],[10,156,11,171],[7,3,8,18],[7,22,8,29],[7,33,8,40],[10,11,11,38],[7,77,8,96],[10,126,10,128],[7,152,8,157],[7,158,8,207],[9,8,9,26],[9,156,9,171],[13,3,14,38],[13,179,14,190],[7,19,8,21],[7,30,8,32],[10,184,11,207],[13,105,14,107],[13,77,14,104],[1,156,2,207],[1,72,2,130],[1,137,2,140],[1,152,2,155],[1,15,2,42],[1,3,2,6],[1,7,2,10],[6,77,6,96],[6,101,6,120],[3,3,5,51],[3,55,3,97],[3,129,4,150],[3,152,4,157],[3,158,4,207],[4,80,5,120],[5,152,6,157],[6,3,6,29]]}
[]
[null,null,null,0,null,null,null,2,null,null,null,null,null,null,null,null,null,null,null,null,null,null,null,null,null,null,null,null,null,null,null,null,null,null,null,null,null,null,null,null,null,null,null,null,null,null,null,null,null,null,null,null,null,null,null,null,null,null,null,null,null,null,null,null,null,null,null,null,null,null,null,null,"請　求　書（　外　注　）",null,null,null,null,null,null,null,null,null,null,null,null,null,null,null,null,null,null,null,null,null,null,null,null,null,null,null,null,null,null,null,null,null,null,null,null,null,null,null,null,null,null,null,null,null,null,null,null,null,null,null,null,null,null,null,null,null,null,null,null,null,null,null,null,null,null,null,null,null,null,null,null,null,null,null,null,null,null,null,"T"]
[]
[null,null,null,"　　　　　　　　　　　　　\n下記の通り請求致します。",null,null,null,null,null,null,null,null,null,null,null,null,null,null,null,null,null,null,null,null,null,null,null,null,null,null,null,null,null,null,null,null,null,null,null,null,null,null,null,null,null,null,null,null,null,null,null,null,null,null,null,"※は必ずご記入ください。",null,null,null,null,null,null,null,null,null,null,null,null,null,null,null,null,null,null,null,null,null,null,null,null,null,null,null,null,null,null,null,null,null,null,null,null,null,null,null,null,null,null,null,null,null,null,null,null,null,null,null,null,null,null,null,null,null,null,null,null,null,null,null,null,null,null,null,null,null,null,null,null,null,"免税事業者は1を記入",null,null,null,null,null,null,null,null,null,null,null,null,null,null,null,null,null,null,null,null,null,null,"住所"]
[null,null,null,null,null,null,null,null,null,null,null,null,null,null,null,null,null,null,null,null,null,null,null,null,null,null,null,null,null,null,null,null,null,null,null,null,null,null,null,null,null,null,null,null,null,null,null,null,null,null,null,null,null,"※(中村組担当者名："]
[null,null,null,null,null,null,null,null,null,null,null,null,null,null,null,null,null,null,null,null,null,null,null,null,null,null,null,null,null,null,null,null,null,null,null,null,null,null,null,null,null,null,null,null,null,null,null,null,null,null,null,null,null,null,null,null,null,null,null,null,null,null,null,null,null,null,null,null,null,null,null,null,null,null,null,null,null,null,null,null,null,null,null,null,null,null,null,null,null,null,null,null,null,null,null,null,null,null,null,null,null,null,null,null,null,null,null,null,null,null,null,null,null,null,null,null,null,null,null,null,null,null,null,null,null,null,null,null,null,null,null,null,null,null,null,null,null,null,null,null,null,null,null,null,null,null,null,null,null,null,null,null,"社名",null,null,null,null,null,null,null,null,null,null,null,null,null,null,null,null,null,null,null,null,null,null,null,null,null,null,null,null,null,null,null,null,null,null,null,null,null,null,null,null,null,null,null,null,null,null,null,null,null,"㊞"]
[null,null,null,"※請求年月日(西暦)",null,null,null,null,null,null,null,null,null,null,null,null,null,null,null,null,null,null,null,null,null,null,null,null,null,null,null,null,null,null,null,null,null,null,null,null,null,null,null,null,null,null,null,null,null,null,null,null,null,null,null,null,null,null,null,null,null,null,null,null,null,null,null,null,null,null,null,null,null,null,null,null,null,"※取引先コード",null,null,null,null,null,null,null,null,null,null,null,null,null,null,null,null,null,null,null,null,null,null,null,"※注文No."]
[null,null,null,null,null,null,null,null,null,null,null,null,null,null,null,null,null,null,null,"年",null,null,null,null,null,null,null,null,null,null,"月",null,null,null,null,null,null,null,null,null,null,"日",null,null,null,null,null,null,null,null,null,null,null,null,null,null,null,null,null,null,null,null,null,null,null,null,null,null,null,null,null,null,null,null,null,null,null,null,null,null,null,null,null,null,null,null,null,null,null,null,null,null,null,null,null,null,null,null,null,null,null,null,null,null,null,null,null,null,null,null,null,null,null,null,null,null,null,null,null,null,null,null,null,null,null,null,null,null,null,null,null,null,null,null,null,null,null,null,null,null,null,null,null,null,null,null,null,null,null,null,null,null,"TEL"]
[]
[null,null,null,null,null,null,null,null,"※工事コード",null,null,null,null,null,null,null,null,null,null,null,null,null,null,null,null,null,null,null,null,null,null,null,null,null,null,null,null,null,null,null,null,null,null,null,null,null,null,null,null,null,null,null,null,null,null,null,null,null,null,null,null,null,null,null,null,null,null,null,null,null,null,null,null,null,null,null,null,null,null,null,null,null,null,null,null,null,null,null,null,null,null,null,null,null,null,null,null,null,null,null,null,null,null,null,null,null,null,null,null,null,null,null,null,null,null,null,null,null,null,null,null,null,null,null,null,null,null,null,null,null,null,null,null,null,null,null,null,null,null,null,null,null,null,null,null,null,null,null,null,null,null,null,null,null,null,null,"部門コード"]
[null,null,null,null,null,null,null,null,null,null,null,null,null,null,null,null,null,null,null,null,null,null,null,null,null,null,null,null,null,null,null,null,null,null,null,null,null,null,null,null,null,null,null,null,null,null,null,null,null,null,null,null,null,null,null,null,null,"※(工事名称：",null,null,null,null,null,null,null,null,null,null,null,null,null,null,null,null,null,null,null,null,null,null,null,null,null,null,null,null,null,null,null,null,null,null,null,null,null,null,null,null,null,null,null,null,null,null,null,null,null,null,null,null,null,null,null,null,null,null,null,null,null,null,null,null,null,null,null,null,"※",null,null,"適用",null,null,null,null,null,null,null,null,null,null,null,null,null,"%",null,null,null,null,null,null,null,null,null,null,null,null,null,null,null,null,null,null,null,null,null,null,null,null,null,null,null,null,null,null,null,null,null,null,null,null,null,null,null,null,null,null,null,null,null,null,null,null,null,null,null,null,null,null,null,null,null,null,null,null,null,null,null,null,")"]
[null,null,null,null,null,null,null,null,null,null,null,null,null,null,null,null,null,null,null,null,null,null,null,null,null,null,null,null,null,null,null,null,null,null,null,null,null,null,null,null,null,null,null,null,null,null,null,null,null,null,null,null,null,null,null,null,null,null,null,null,null,null,null,null,null,null,null,null,null,null,null,null,null,null,null,null,null,null,null,null,null,null,null,null,null,null,null,null,null,null,null,null,null,null,null,null,null,null,null,null,null,null,null,null,null,null,null,null,null,null,null,null,null,null,null,null,null,null,null,null,null,null,null,null,null,null,null,null,null,"税率"]
[null,null,null,"※当月課税分請求額(税抜) D",null,null,null,null,null,null,null,null,null,null,null,null,null,null,null,null,null,null,null,null,null,null,null,null,null,null,null,null,null,null,null,null,null,null,null,null,null,null,"※消費税",null,null,null,null,null,null,null,null,null,null,null,null,null,null,null,null,null,null,null,null,null,null,null,null,null,null,null,null,null,null,null,null,null,null,"※当月非課税分請求額",null,null,null,null,null,null,null,null,null,null,null,null,null,null,null,null,null,null,null,null,null,null,null,null,null,null,null,null,null,null,"※今回請求金額(税込)",null,null,null,null,null,null,null,null,null,null,null,null,null,null,null,null,null,null,null,null,null,null,null,null,null,null,null,null,null,null,null,null,null,null,null,null,null,null,null,null,null,null,null,null,null,null,null,"工種コード",null,null,null,null,null,null,null,null,null,null,null,null,null,null,null,null,null,null,null,null,null,null,"摘要"]
[null,null,null,null,null,null,null,null,null,null,null,null,null,null,null,null,null,null,null,null,null,null,null,null,null,null,null,null,null,null,null,null,null,null,null,null,null,null,null,"+",null,null,null,null,null,null,null,null,null,null,null,null,null,null,null,null,null,null,null,null,null,null,null,null,null,null,null,null,null,null,null,null,null,null,"+",null,null,null,null,null,null,null,null,null,null,null,null,null,null,null,null,null,null,null,null,null,null,null,null,null,null,null,null,null,null,"=",null,null,{"$f":"SUM(D14,AQ14,BZ14)","v":0}]
[]
[null,null,null,null,null,null,null,null,null,null,null,null,null,null,null,null,null,null,null,null,null,null,null,null,null,null,null,null,null,null,null,null,null,null,null,null,null,null,null,null,null,null,null,null,null,null,null,null,null,null,null,null,null,null,null,null,null,null,null,null,null,null,null,null,null,null,null,null,null,null,null,null,null,null,null,null,null,null,null,null,null,null,null,null,null,null,null,null,null,null,null,null,null,null,null,null,null,null,null,null,null,null,null,null,null,null,null,null,null,null,null,null,null,null,null,null,null,null,null,null,null,null,null,null,null,null,null,null,null,null,null,null,null,null,null,null,null,null,null,null,null,null,null,null,null,null,null,null,null,null,null,null,null,null,null,null,"科目コード",null,null,null,null,null,null,null,null,null,null,null,null,null,null,null,null,null,null,null,null,null,null,"科目コード"]
[null,null,"※",null,null,null,"月日",null,null,null,null,null,null,null,null,"工　　事　　内　　容",null,null,null,null,null,null,null,null,null,null,null,null,null,null,null,null,null,null,null,null,null,null,null,null,null,null,null,null,null,null,null,null,null,null,null,null,null,null,null,null,null,null,null,null,null,null,null,null,null,null,null,null,"数　量",null,null,null,null,null,null,null,null,null,null,null,null,null,null,"単　価",null,null,null,null,null,null,null,null,null,null,null,null,null,"金　　額",null,null,null,null,null,null,null,null,null,null,null,null,null,null,null,null,null,null,null,null,"出来高数量%",null,null,null,null,null,null,null,null,null,"出来高金額",null,null,null,null,null,null,null,null,null,null,null,null,null,null,null,null,null,null,null,null,null,null,null,null,null,null,null,4,null,null,null,0,null,null,null,3,null,null,null,0]
[]
[]
[null,null,null,null,null,null,null,null,null,null,null,null,null,null,null,null,null,null,null,null,null,null,null,null,null,null,null,null,null,null,null,null,null,null,null,null,null,null,null,null,null,null,null,null,null,null,null,null,null,null,null,null,null,null,null,null,null,null,null,null,null,null,null,null,null,null,null,null,null,null,null,null,null,null,null,null,null,null,null,null,null,null,null,null,null,null,null,null,null,null,null,null,null,null,null,null,null,null,null,null,null,null,null,null,null,null,null,null,null,null,null,null,null,null,null,null,null,null,null,null,null,null,null,null,null,null,null,null,null,null,null,null,null,null,null,null,null,null,null,null,null,null,null,null,null,null,null,null,null,null,null,"※",null,null,null,"注文金額",null,null,null,null,"当 初 金 額"]
[]
[null,null,null,null,null,null,null,null,null,null,null,null,null,null,null,null,null,null,null,null,null,null,null,null,null,null,null,null,null,null,null,null,null,null,null,null,null,null,null,null,null,null,null,null,null,null,null,null,null,null,null,null,null,null,null,null,null,null,null,null,null,null,null,null,null,null,null,null,null,null,null,null,null,null,null,null,null,null,null,null,null,null,null,null,null,null,null,null,null,null,null,null,null,null,null,null,null,null,null,null,null,null,null,null,null,null,null,null,null,null,null,null,null,null,null,null,null,null,null,null,null,null,null,null,null,null,null,null,null,null,null,null,null,null,null,null,null,null,null,null,null,null,null,null,null,null,null,null,null,null,null,null,null,null,null,null,null,null,null,null,"変 更 金 額"]
[]
[null,null,null,null,null,null,null,null,null,null,null,null,null,null,null,null,null,null,null,null,null,null,null,null,null,null,null,null,null,null,null,null,null,null,null,null,null,null,null,null,null,null,null,null,null,null,null,null,null,null,null,null,null,null,null,null,null,null,null,null,null,null,null,null,null,null,null,null,null,null,null,null,null,null,null,null,null,null,null,null,null,null,null,null,null,null,null,null,null,null,null,null,null,null,null,null,null,null,null,null,null,null,null,null,null,null,null,null,null,null,null,null,null,null,null,null,null,null,null,null,null,null,null,null,null,null,null,null,null,null,null,null,null,null,null,null,null,null,null,null,null,null,null,null,null,null,null,null,null,null,null,null,null,null,null,null,null,null,null,null,"現 在 金 額"]
[]
[null,null,null,null,null,null,null,null,null,null,null,null,null,null,null,null,null,null,null,null,null,null,null,null,null,null,null,null,null,null,null,null,null,null,null,null,null,null,null,null,null,null,null,null,null,null,null,null,null,null,null,null,null,null,null,null,null,null,null,null,null,null,null,null,null,null,null,null,null,null,null,null,null,null,null,null,null,null,null,null,null,null,null,null,null,null,null,null,null,null,null,null,null,null,null,null,null,null,null,null,null,null,null,null,null,null,null,null,null,null,null,null,null,null,null,null,null,null,null,null,null,null,null,null,null,null,null,null,null,null,null,null,null,null,null,null,null,null,null,null,null,null,null,null,null,null,null,null,null,null,null,null,null,null,null,"A．累計　出来高金額",null,null,null,null,null,null,null,null,null,null,null,null,null,null,null,null,null,null,null,null,null,null,{"$f":"DY31","v":0},null,null,null,null,null,null,null,null,null,null,null,null,null,null,null,null,null,null,null,"(",null,null,null,null,null,null,"%)"]
[]
[]
[null,null,null,null,null,null,null,null,null,null,null,null,null,null,null,null,null,null,null,null,null,null,null,null,null,null,null,null,null,null,null,null,null,null,null,null,null,null,null,null,null,null,null,null,null,null,null,null,null,null,null,null,null,null,null,null,null,null,null,null,null,null,null,null,null,null,null,null,null,null,null,null,null,null,null,null,null,null,null,null,null,null,null,null,null,null,null,null,null,null,null,null,null,null,null,null,null,null,null,null,null,null,null,null,null,null,null,null,null,null,null,null,null,null,null,null,null,null,null,null,null,null,null,null,null,null,null,null,null,null,null,null,null,null,null,null,null,null,null,null,null,null,null,null,null,null,null,null,null,null,null,null,null,null,null,"B．     A × 90  %"]
[]
[null,null,null,null,null,null,"計",null,null,null,null,null,null,null,null,null,null,null,null,null,null,null,null,null,null,null,null,null,null,null,null,null,null,null,null,null,null,null,null,null,null,null,null,null,null,null,null,null,null,null,null,null,null,null,null,null,null,null,null,null,null,null,null,null,null,null,null,null,null,null,null,null,null,null,null,null,null,null,null,null,null,null,null,null,null,null,null,null,null,null,null,null,null,null,null,null,null,{"$f":"SUM(CT19,CT21,CT23,CT25,CT27,CT29)","v":0},null,null,null,null,null,null,null,null,null,null,null,null,null,null,null,null,null,null,null,null,{"$f":"IFERROR(DY31/CT31,\"\")","v":""},null,null,null,null,null,null,null,null,null,{"$f":"SUM(DY19,DY21,DY23,DY25,DY27,DY29)","v":0},null,null,null,null,null,null,null,null,null,null,null,null,null,null,null,null,null,null,null,null,"A",null,null,null,null,null,"C．既 受 入 金 額",null,null,null,null,null,null,null,null,null,null,null,null,null,null,null,null,null,null,null,null,null,null,"△"]
[]
[null,null,null,null,null,null,null,null,null,null,null,null,null,null,null,null,null,null,null,null,null,null,null,null,null,null,null,null,null,null,null,null,null,null,null,null,null,null,null,null,null,null,null,null,null,null,null,null,null,null,null,null,null,null,null,null,null,null,null,null,null,null,null,null,null,null,null,null,null,null,null,null,null,null,null,null,null,null,null,null,null,null,null,null,null,null,null,null,null,null,null,null,null,null,null,null,null,null,null,null,null,null,null,null,null,null,null,null,null,null,null,null,null,null,null,null,null,null,null,null,null,null,null,null,null,null,null,null,null,null,null,null,null,null,null,null,null,null,null,null,null,null,null,null,null,null,null,null,null,null,null,null,null,null,null,"D．当 月 請 求 額"]

{"sheet":"請求書","index":1,"n_rows":86,"n_cols":209,"rows_kept":86,"cut":false,"hidden":false,"merged":[[85,188,86,197],[85,198,86,207],[85,155,86,177],[85,178,86,187],[66,179,67,182],[66,183,67,186],[66,187,67,190],[68,156,68,171],[68,179,68,194],[69,160,70,163],[69,164,70,167],[69,168,70,171],[69,179,70,182],[69,183,70,186],[69,187,70,190],[69,191,70,194],[81,188,82,197],[81,198,82,207],[83,155,84,177],[83,178,84,180],[83,181,84,187],[83,188,84,197],[83,198,84,207],[79,178,80,187],[79,188,80,197],[78,178,78,187],[78,188,78,197],[54,200,55,203],[54,204,55,207],[53,184,53,207],[83,128,84,134],[83,135,84,141],[83,142,84,148],[83,149,84,152],[81,128,82,134],[81,135,82,141],[81,142,82,148],[81,155,82,177],[81,178,82,187],[78,155,80,177],[78,198,78,199],[78,200,78,204],[78,205,78,207],[79,142,80,148],[79,198,80,207],[71,142,72,148],[72,151,73,153],[72,155,77,159],[81,6,82,14],[81,15,82,67],[81,68,82,82],[81,97,82,103],[81,104,82,110],[81,111,82,117],[81,118,82,127],[83,6,84,96],[83,97,84,103],[83,104,84,110],[83,111,84,117],[83,118,84,127],[81,83,82,96],[79,6,80,14],[79,15,80,67],[79,68,80,82],[79,97,80,103],[79,104,80,110],[79,111,80,117],[79,118,80,127],[79,128,80,134],[79,135,80,141],[79,83,80,96],[73,118,74,127],[77,97,78,103],[77,104,78,110],[77,111,78,117],[77,118,78,127],[75,6,76,14],[75,15,76,67],[75,68,76,82],[75,97,76,103],[75,104,76,110],[75,111,76,117],[75,118,76,127],[77,6,78,14],[77,15,78,67],[77,68,78,82],[73,6,74,14],[73,15,74,67],[73,68,74,82],[73,97,74,103],[73,104,74,110],[73,111,74,117],[73,83,74,96],[75,83,76,96],[77,83,78,96],[72,160,73,177],[72,178,73,187],[72,188,73,197],[72,198,73,207],[73,128,74,134],[73,135,74,141],[73,142,74,148],[74,160,75,177],[74,178,75,187],[74,188,75,197],[74,198,75,207],[75,128,76,134],[75,135,76,141],[75,142,76,148],[76,160,77,177],[76,178,77,187],[76,188,77,197],[76,198,77,207],[77,128,78,134],[77,135,78,141],[77,142,78,148],[71,6,72,14],[71,15,72,67],[71,68,72,82],[71,97,72,103],[71,104,72,110],[71,111,72,117],[71,118,72,127],[71,128,72,134],[71,135,72,141],[71,83,72,96],[69,68,70,82],[69,83,70,96],[69,97,70,117],[69,118,70,127],[69,128,70,148],[69,156,70,159],[66,128,67,131],[66,132,67,135],[66,136,67,139],[66,140,67,143],[66,147,67,151],[66,156,67,159],[66,93,67,96],[66,97,67,100],[66,101,67,104],[66,105,67,107],[66,108,67,111],[66,77,67,80],[66,81,67,84],[66,85,67,88],[66,89,67,92],[65,210,69,210],[66,3,67,6],[66,7,67,10],[66,11,67,14],[66,15,67,18],[66,19,67,22],[66,23,67,26],[66,27,67,30],[66,31,67,34],[66,35,67,38],[66,39,67,41],[66,42,67,45],[66,46,67,49],[66,50,67,53],[66,54,67,57],[66,58,67,61],[66,62,67,65],[66,66,67,69],[66,70,67,73],[66,74,67,76],[66,172,67,175],[69,2,70,4],[69,6,70,14],[69,15,70,67],[63,184,64,207],[60,37,61,40],[60,41,61,43],[60,77,61,80],[60,81,61,84],[63,168,64,171],[66,112,67,115],[66,116,67,119],[66,120,67,123],[66,124,67,127],[66,160,67,163],[66,164,67,167],[66,168,67,171],[63,208,64,209],[64,129,64,134],[65,3,65,38],[65,42,65,73],[65,77,65,104],[65,108,65,143],[65,156,65,175],[65,179,65,190],[62,8,62,26],[62,156,62,171],[63,11,64,14],[63,15,64,18],[63,19,64,22],[63,23,64,26],[63,27,64,30],[63,31,64,34],[63,35,64,38],[63,75,64,124],[63,129,63,134],[63,135,64,142],[63,143,64,147],[63,156,64,159],[63,160,64,163],[63,164,64,167],[56,55,56,97],[56,129,57,150],[56,152,57,157],[57,80,58,120],[58,152,59,157],[59,3,59,29],[59,77,59,96],[59,101,59,120],[60,85,61,88],[60,89,61,92],[60,93,61,96],[60,101,61,104],[60,105,61,108],[60,3,61,6],[60,7,61,10],[60,11,61,14],[60,15,61,18],[60,19,61,21],[60,22,61,25],[60,26,61,29],[60,30,61,32],[60,33,61,36],[60,152,61,157],[60,117,61,120],[54,3,55,6],[54,7,55,10],[54,15,55,18],[54,19,55,22],[54,23,55,26],[54,27,55,30],[54,31,55,34],[54,35,55,38],[54,39,55,42],[54,188,55,191],[54,192,55,195],[54,196,55,199],[37,155,38,177],[40,155,41,178],[42,155,45,166],[42,167,45,178],[40,179,41,202],[42,179,45,190],[42,191,45,202],[37,178,38,188],[37,189,38,204],[48,185,49,188],[46,157,47,176],[48,157,49,160],[48,161,49,164],[48,165,49,168],[48,169,49,172],[54,152,55,155],[54,156,55,159],[54,160,55,163],[54,164,55,167],[54,168,55,171],[54,172,55,175],[33,15,34,18],[33,99,34,102],[33,103,34,106],[33,107,34,110],[33,111,34,114],[30,135,31,141],[33,23,34,26],[54,180,55,183],[54,184,55,187],[54,176,55,179],[54,141,55,144],[33,27,34,30],[33,95,34,98],[36,79,37,82],[42,51,43,54],[42,59,43,62],[36,47,37,50],[36,51,37,54],[36,59,37,62],[33,138,34,141],[36,63,37,66],[36,67,37,70],[39,47,40,50],[39,51,40,54],[30,198,31,207],[32,155,33,177],[32,178,33,187],[32,188,33,197],[32,198,33,207],[30,155,31,177],[35,155,36,177],[30,178,31,180],[30,181,31,187],[30,188,31,197],[7,101,8,104],[7,105,8,108],[37,205,38,207],[16,15,17,67],[25,155,27,177],[28,188,29,197],[28,198,29,207],[7,41,8,43],[9,8,9,26],[10,31,11,34],[10,35,11,38],[13,62,14,65],[13,66,14,69],[13,70,14,73],[13,120,14,123],[13,77,14,80],[13,81,14,84],[13,85,14,88],[13,89,14,92],[13,93,14,96],[13,97,14,100],[13,101,14,104],[13,105,14,107],[13,108,14,111],[1,3,2,6],[1,7,2,10],[7,11,8,14],[7,15,8,18],[7,19,8,21],[7,22,8,25],[7,26,8,29],[7,30,8,32],[7,33,8,36],[1,15,2,18],[1,19,2,22],[1,23,2,26],[1,27,2,30],[1,31,2,34],[1,35,2,38],[7,37,8,40],[1,39,2,42],[6,3,6,29],[3,3,5,49],[7,3,8,6],[7,7,8,10],[24,6,25,14],[26,6,27,14],[28,6,29,14],[13,19,14,22],[13,23,14,26],[33,35,34,38],[33,39,34,42],[33,87,34,90],[13,11,14,14],[16,6,17,14],[18,6,19,14],[16,68,17,82],[18,68,19,82],[20,68,21,82],[22,68,23,82],[13,54,14,57],[13,58,14,61],[20,6,21,14],[22,6,23,14],[24,68,25,82],[18,15,19,67],[20,15,21,67],[33,3,34,6],[33,11,34,14],[10,11,11,14],[10,15,11,18],[10,19,11,22],[10,23,11,26],[10,27,11,30],[13,74,14,76],[13,31,14,34],[13,35,14,38],[13,116,14,119],[13,39,14,41],[13,42,14,45],[13,46,14,49],[13,50,14,53],[13,15,14,18],[18,142,19,148],[13,112,14,115],[12,3,12,38],[12,42,12,73],[12,77,12,104],[12,108,12,143],[13,3,14,6],[13,7,14,10],[13,27,14,30],[16,83,17,96],[13,172,14,175],[16,156,17,159],[16,160,17,163],[16,164,17,167],[16,168,17,171],[13,156,14,159],[13,160,14,163],[13,164,14,167],[13,168,14,171],[36,3,37,6],[36,7,37,10],[36,11,37,14],[36,15,37,18],[36,19,37,22],[13,147,14,151],[16,128,17,148],[13,140,14,143],[19,151,20,153],[36,23,37,26],[36,27,37,30],[36,35,37,38],[36,39,37,42],[36,43,37,46],[36,95,37,98],[33,59,34,62],[33,63,34,66],[33,67,34,70],[33,43,34,46],[33,47,34,50],[33,51,34,54],[33,91,34,94],[18,135,19,141],[36,138,37,141],[48,3,49,6],[48,7,49,10],[48,11,49,14],[48,15,49,18],[48,19,49,22],[45,122,46,125],[45,126,46,129],[45,130,46,133],[45,138,46,141],[45,99,46,102],[45,103,46,106],[45,107,46,110],[45,111,46,114],[45,118,46,121],[45,79,46,82],[45,83,46,86],[45,87,46,90],[45,91,46,94],[45,95,46,98],[45,47,46,50],[45,51,46,54],[45,59,46,62],[45,63,46,66],[45,67,46,70],[48,47,49,50],[48,51,49,54],[48,59,49,62],[48,63,49,66],[48,67,49,70],[48,23,49,26],[48,27,49,30],[48,35,49,38],[48,39,49,42],[48,43,49,46],[51,70,52,77],[42,107,43,110],[42,111,43,114],[42,118,43,121],[42,79,43,82],[42,83,43,86],[42,87,43,90],[42,91,43,94],[42,95,43,98],[51,79,52,114],[42,99,43,102],[42,103,43,106],[48,99,49,102],[48,103,49,106],[48,107,49,110],[48,111,49,114],[48,118,49,121],[42,39,43,42],[42,43,43,46],[26,97,27,103],[26,104,27,110],[26,111,27,117],[28,97,29,103],[26,128,27,134],[24,97,25,103],[24,104,25,110],[24,111,25,117],[39,59,40,62],[24,128,25,134],[39,63,40,66],[39,67,40,70],[39,103,40,106],[39,107,40,110],[39,111,40,114],[36,99,37,102],[39,118,40,121],[39,95,40,98],[36,122,37,125],[42,122,43,125],[42,126,43,129],[42,130,43,133],[45,19,46,22],[42,47,43,50],[39,43,40,46],[42,23,43,26],[42,27,43,30],[42,35,43,38],[45,3,46,6],[45,7,46,10],[45,11,46,14],[45,15,46,18],[42,3,43,6],[42,7,43,10],[42,11,43,14],[42,15,43,18],[42,19,43,22],[39,23,40,26],[39,27,40,30],[39,35,40,38],[39,39,40,42],[39,3,40,6],[39,7,40,10],[39,11,40,14],[39,15,40,18],[39,19,40,22],[48,122,49,125],[48,126,49,129],[48,130,49,133],[32,59,32,70],[32,79,32,114],[32,118,32,133],[42,63,43,66],[42,67,43,70],[33,118,34,121],[33,79,34,82],[33,83,34,86],[36,103,37,106],[36,107,37,110],[36,111,37,114],[36,118,37,121],[39,122,40,125],[39,126,40,129],[39,79,40,82],[39,83,40,86],[39,99,40,102],[36,83,37,86],[36,87,37,90],[36,91,37,94],[22,15,23,67],[24,15,25,67],[26,15,27,67],[26,68,27,82],[28,68,29,82],[28,15,29,67],[48,0,49,2],[30,104,31,110],[30,6,31,96],[30,97,31,103],[48,79,49,82],[48,83,49,86],[48,87,49,90],[48,91,49,94],[48,95,49,98],[36,0,37,2],[39,0,40,2],[42,0,43,2],[45,0,46,2],[45,23,46,26],[45,27,46,30],[45,35,46,38],[33,0,34,2],[33,19,34,22],[1,152,2,155],[1,156,2,159],[1,160,2,163],[36,146,37,150],[33,146,34,150],[16,191,17,194],[28,155,29,177],[28,178,29,187],[16,2,17,4],[32,3,32,30],[32,35,32,54],[12,156,12,175],[15,156,15,171],[12,179,12,190],[15,179,15,194],[13,183,14,186],[13,187,14,190],[13,179,14,182],[16,179,17,182],[25,178,25,187],[26,83,27,96],[30,111,31,117],[30,118,31,127],[30,128,31,134],[1,184,2,187],[1,188,2,191],[1,192,2,195],[1,196,2,199],[1,164,2,167],[1,168,2,171],[1,172,2,175],[1,176,2,179],[1,180,2,183],[26,188,27,197],[25,188,25,197],[26,178,27,187],[51,3,51,63],[28,83,29,96],[33,7,34,10],[48,173,49,176],[48,177,49,180],[48,181,49,184],[39,130,40,133],[39,138,40,141],[39,87,40,90],[39,91,40,94],[26,142,27,148],[28,128,29,134],[28,135,29,141],[28,142,29,148],[28,104,29,110],[28,111,29,117],[26,135,27,141],[26,118,27,127],[28,118,29,127],[45,39,46,42],[45,43,46,46],[0,184,0,207],[10,129,10,134],[10,135,11,142],[10,143,11,147],[11,129,11,134],[1,72,2,130],[1,200,2,203],[1,204,2,207],[3,55,3,97],[4,80,5,120],[10,125,10,128],[9,156,9,171],[1,141,2,144],[6,77,6,96],[6,101,6,120],[7,109,8,112],[7,113,8,116],[7,117,8,120],[10,75,11,124],[3,152,4,157],[3,158,4,207],[5,152,6,157],[7,152,8,157],[7,158,8,207],[30,149,31,152],[18,104,19,110],[18,111,19,117],[20,97,21,103],[20,104,21,110],[20,111,21,117],[18,97,19,103],[18,83,19,96],[20,83,21,96],[22,83,23,96],[24,83,25,96],[18,118,19,127],[20,118,21,127],[22,118,23,127],[24,118,25,127],[18,128,19,134],[22,111,23,117],[20,128,21,134],[20,135,21,141],[20,142,21,148],[22,128,23,134],[22,135,23,141],[22,142,23,148],[24,135,25,141],[19,188,20,197],[19,198,20,207],[21,160,22,177],[21,178,22,187],[3,129,4,150],[7,77,8,80],[7,81,8,84],[7,85,8,88],[7,89,8,92],[7,93,8,96],[22,97,23,103],[22,104,23,110],[16,118,17,127],[13,124,14,127],[13,128,14,131],[13,132,14,135],[13,136,14,139],[21,198,22,207],[23,160,24,177],[23,178,24,187],[23,188,24,197],[23,198,24,207],[24,142,25,148],[16,97,17,117],[54,72,55,130],[60,109,61,112],[60,113,61,116],[21,188,22,197],[12,210,16,210],[10,184,11,207],[35,178,36,188],[35,189,36,192],[35,193,36,203],[35,204,36,207],[16,183,17,186],[16,187,17,190],[19,155,24,159],[19,160,20,177],[19,178,20,187],[25,198,25,199],[25,205,25,207],[25,200,25,204],[10,208,11,209],[26,198,27,207],[10,156,11,159],[10,160,11,163],[10,164,11,167],[10,168,11,171],[4,54,5,79],[10,57,11,74],[57,54,58,79],[63,58,64,74],[5,203,6,207],[5,158,6,202],[56,158,61,207],[56,3,58,49],[63,125,63,128],[51,131,51,151],[30,142,31,148],[45,146,46,150],[42,138,43,141],[42,146,43,150],[48,138,49,141],[48,146,49,150],[39,146,40,150],[32,136,32,143],[32,146,32,150],[36,126,37,129],[36,130,37,133],[33,122,34,125],[33,126,34,129],[33,130,34,133]]}
[null,null,null,null,null,null,null,null,null,null,null,null,null,null,null,null,null,null,null,null,null,null,null,null,null,null,null,null,null,null,null,null,null,null,null,null,null,null,null,null,null,null,null,null,null,null,null,null,null,null,null,null,null,null,null,null,null,null,null,null,null,null,null,null,null,null,null,null,null,null,null,null,null,null,null,null,null,null,null,null,null,null,null,null,null,null,null,null,null,null,null,null,null,null,null,null,null,null,null,null,null,null,null,null,null,null,null,null,null,null,null,null,null,null,null,null,null,null,null,null,null,null,null,null,null,null,null,null,null,null,null,null,null,null,null,null,null,null,null,null,null,null,null,null,null,null,null,null,null,null,null,null,null,null,null,null,null,null,null,null,null,null,null,null,null,null,null,null,null,null,null,null,null,null,null,null,null,null,null,null,null,null,null,null,"➀提出用"]
[null,null,null,0,null,null,null,2,null,null,null,null,null,null,null," ",null,null,null," ",null,null,null," ",null,null,null," ",null,null,null," ",null,null,null," ",null,null,null," ",null,null,null,null,null,null,null,null,null,null,null,null,null,null,null,null,null,null,null,null,null,null,null,null,null,null,null,null,null,null,null,null,"請　求　書（　外　注　）",null,null,null,null,null,null,null,null,null,null,null,null,null,null,null,null,null,null,null,null,null,null,null,null,null,null,null,null,null,null,null,null,null,null,null,null,null,null,null,null,null,null,null,null,null,null,null,null,null,null,null,null,null,null,null,null,null,null,null,null,null,null,null,null," ",null,null,null," ",null,null,null,null,null,null,null,null,null,null,"T",null,null,null," ",null,null,null," ",null,null,null," ",null,null,null," ",null,null,null," ",null,null,null," ",null,null,null," ",null,null,null," ",null,null,null," ",null,null,null," ",null,null,null," ",null,null,null," ",null,null,null," "]
[]
[null,null,null,"　　　　　　　　　　　　　\n下記の通り請求致します。",null,null,null,null,null,null,null,null,null,null,null,null,null,null,null,null,null,null,null,null,null,null,null,null,null,null,null,null,null,null,null,null,null,null,null,null,null,null,null,null,null,null,null,null,null,null,null,null,null,null,null,"※は必ずご記入ください。",null,null,null,null,null,null,null,null,null,null,null,null,null,null,null,null,null,null,null,null,null,null,null,null,null,null,null,null,null,null,null,null,null,null,null,null,null,null,null,null,null,null,null,null,null,null,null,null,null,null,null,null,null,null,null,null,null,null,null,null,null,null,null,null,null,null,null,null,null,null,null,null,null,"免税事業者は1を記入",null,null,null,null,null,null,null,null,null,null,null,null,null,null,null,null,null,null,null,null,null,null,"住所",null,null,null,null,null,""]
[null,null,null,null,null,null,null,null,null,null,null,null,null,null,null,null,null,null,null,null,null,null,null,null,null,null,null,null,null,null,null,null,null,null,null,null,null,null,null,null,null,null,null,null,null,null,null,null,null,null,null,null,null,null,"※(中村組担当者名："]
[null,null,null,null,null,null,null,null,null,null,null,null,null,null,null,null,null,null,null,null,null,null,null,null,null,null,null,null,null,null,null,null,null,null,null,null,null,null,null,null,null,null,null,null,null,null,null,null,null,null,null,null,null,null,null,null,null,null,null,null,null,null,null,null,null,null,null,null,null,null,null,null,null,null,null,null,null,null,null,null,null,null,null,null,null,null,null,null,null,null,null,null,null,null,null,null,null,null,null,null,null,null,null,null,null,null,null,null,null,null,null,null,null,null,null,null,null,null,null,null,null,null,null,null,null,null,null,null,null,null,null,null,null,null,null,null,null,null,null,null,null,null,null,null,null,null,null,null,null,null,null,null,"社名",null,null,null,null,null,"",null,null,null,null,null,null,null,null,null,null,null,null,null,null,null,null,null,null,null,null,null,null,null,null,null,null,null,null,null,null,null,null,null,null,null,null,null,null,null,null,null,null,null,null,"㊞"]
[null,null,null,"※請求年月日(西暦)",null,null,null,null,null,null,null,null,null,null,null,null,null,null,null,null,null,null,null,null,null,null,null,null,null,null,null,null,null,null,null,null,null,null,null,null,null,null,null,null,null,null,null,null,null,null,null,null,null,null,null,null,null,null,null,null,null,null,null,null,null,null,null,null,null,null,null,null,null,null,null,null,null,"※取引先コード",null,null,null,null,null,null,null,null,null,null,null,null,null,null,null,null,null,null,null,null,null,null,null,"※注文No."]
[null,null,null," ",null,null,null," ",null,null,null," ",null,null,null," ",null,null,null,"年",null,null," ",null,null,null," ",null,null,null,"月",null,null," ",null,null,null," ",null,null,null,"日",null,null,null,null,null,null,null,null,null,null,null,null,null,null,null,null,null,null,null,null,null,null,null,null,null,null,null,null,null,null,null,null,null,null,null," ",null,null,null," ",null,null,null," ",null,null,null," ",null,null,null," ",null,null,null,null,null,null,null," ",null,null,null," ",null,null,null," ",null,null,null," ",null,null,null," ",null,null,null,null,null,null,null,null,null,null,null,null,null,null,null,null,null,null,null,null,null,null,null,null,null,null,null,null,null,null,null,null,null,null,"TEL",null,null,null,null,null,""]
[]
[null,null,null,null,null,null,null,null,"※工事コード",null,null,null,null,null,null,null,null,null,null,null,null,null,null,null,null,null,null,null,null,null,null,null,null,null,null,null,null,null,null,null,null,null,null,null,null,null,null,null,null,null,null,null,null,null,null,null,null,null,null,null,null,null,null,null,null,null,null,null,null,null,null,null,null,null,null,null,null,null,null,null,null,null,null,null,null,null,null,null,null,null,null,null,null,null,null,null,null,null,null,null,null,null,null,null,null,null,null,null,null,null,null,null,null,null,null,null,null,null,null,null,null,null,null,null,null,null,null,null,null,null,null,null,null,null,null,null,null,null,null,null,null,null,null,null,null,null,null,null,null,null,null,null,null,null,null,null,"部門コード"]
[null,null,null,null,null,null,null,null,null,null,null," ",null,null,null," ",null,null,null," ",null,null,null," ",null,null,null," ",null,null,null," ",null,null,null," ",null,null,null,null,null,null,null,null,null,null,null,null,null,null,null,null,null,null,null,null,null,"※(工事名称：",null,null,null,null,null,null,null,null,null,null,null,null,null,null,null,null,null,null,null,null,null,null,null,null,null,null,null,null,null,null,null,null,null,null,null,null,null,null,null,null,null,null,null,null,null,null,null,null,null,null,null,null,null,null,null,null,null,null,null,null,null,null,null,null,null,null,null,"※",null,null,null,"適用",null,null,null,null,null,null,null,null,null,null,null,null,null,"%",null,null,null,null,null,null,null,null,null,null,null,null," ",null,null,null," ",null,null,null," ",null,null,null," ",null,null,null,null,null,null,null,null,null,null,null,null,null,null,null,null,null,null,null,null,null,null,null,null,null,null,null,null,null,null,null,null,null,null,null,null,null,null,null,")"]
[null,null,null,null,null,null,null,null,null,null,null,null,null,null,null,null,null,null,null,null,null,null,null,null,null,null,null,null,null,null,null,null,null,null,null,null,null,null,null,null,null,null,null,null,null,null,null,null,null,null,null,null,null,null,null,null,null,null,null,null,null,null,null,null,null,null,null,null,null,null,null,null,null,null,null,null,null,null,null,null,null,null,null,null,null,null,null,null,null,null,null,null,null,null,null,null,null,null,null,null,null,null,null,null,null,null,null,null,null,null,null,null,null,null,null,null,null,null,null,null,null,null,null,null,null,null,null,null,null,"税率"]
[null,null,null,"※当月課税分請求額(税抜) D",null,null,null,null,null,null,null,null,null,null,null,null,null,null,null,null,null,null,null,null,null,null,null,null,null,null,null,null,null,null,null,null,null,null,null,null,null,null,"※消費税",null,null,null,null,null,null,null,null,null,null,null,null,null,null,null,null,null,null,null,null,null,null,null,null,null,null,null,null,null,null,null,null,null,null,"※当月非課税分請求額",null,null,null,null,null,null,null,null,null,null,null,null,null,null,null,null,null,null,null,null,null,null,null,null,null,null,null,null,null,null,"※今回請求金額(税込)",null,null,null,null,null,null,null,null,null,null,null,null,null,null,null,null,null,null,null,null,null,null,null,null,null,null,null,null,null,null,null,null,null,null,null,null,null,null,null,null,null,null,null,null,null,null,null,"工種コード",null,null,null,null,null,null,null,null,null,null,null,null,null,null,null,null,null,null,null,null,null,null,"摘要"]
[null,null,null," ",null,null,null," ",null,null,null," ",null,null,null," ",null,null,null," ",null,null,null," ",null,null,null," ",null,null,null," ",null,null,null," ",null,null,null,"+",null,null," ",null,null,null," ",null,null,null," ",null,null,null," ",null,null,null," ",null,null,null," ",null,null,null," ",null,null,null," ",null,null,null,"+",null,null," ",null,null,null," ",null,null,null," ",null,null,null," ",null,null,null," ",null,null,null," ",null,null,null," ",null,null,null,"=",null,null," ",null,null,null," ",null,null,null," ",null,null,null," ",null,null,null," ",null,null,null," ",null,null,null," ",null,null,null," ",null,null,null,null,null,null,null,null,null,null," ",null,null,null,null,null,null,null,null," ",null,null,null," ",null,null,null," ",null,null,null," ",null,null,null," ",null,null,null,null,null,null," ",null,null,null," ",null,null,null," "]
[]
[null,null,null,null,null,null,null,null,null,null,null,null,null,null,null,null,null,null,null,null,null,null,null,null,null,null,null,null,null,null,null,null,null,null,null,null,null,null,null,null,null,null,null,null,null,null,null,null,null,null,null,null,null,null,null,null,null,null,null,null,null,null,null,null,null,null,null,null,null,null,null,null,null,null,null,null,null,null,null,null,null,null,null,null,null,null,null,null,null,null,null,null,null,null,null,null,null,null,null,null,null,null,null,null,null,null,null,null,null,null,null,null,null,null,null,null,null,null,null,null,null,null,null,null,null,null,null,null,null,null,null,null,null,null,null,null,null,null,null,null,null,null,null,null,null,null,null,null,null,null,null,null,null,null,null,null,"科目コード",null,null,null,null,null,null,null,null,null,null,null,null,null,null,null,null,null,null,null,null,null,null,"科目コード"]
[null,null,"※",null,null,null,"月日",null,null,null,null,null,null,null,null,"工　　事　　内　　容",null,null,null,null,null,null,null,null,null,null,null,null,null,null,null,null,null,null,null,null,null,null,null,null,null,null,null,null,null,null,null,null,null,null,null,null,null,null,null,null,null,null,null,null,null,null,null,null,null,null,null,null,"数　量",null,null,null,null,null,null,null,null,null,null,null,null,null,null,"単　価",null,null,null,null,null,null,null,null,null,null,null,null,null,"金　　額",null,null,null,null,null,null,null,null,null,null,null,null,null,null,null,null,null,null,null,null,"出来高数量%",null,null,null,null,null,null,null,null,null,"出来高金額",null,null,null,null,null,null,null,null,null,null,null,null,null,null,null,null,null,null,null,null,null,null,null,null,null,null,null,4,null,null,null,0,null,null,null,3,null,null,null,0,null,null,null,null,null,null,null,null,null,null," ",null,null,null," ",null,null,null," ",null,null,null," "]
[]
[null,null,null,null,null,null,null,null,null,null,null,null,null,null,null,null,null,null,null,null,null,null,null,null,null,null,null,null,null,null,null,null,null,null,null,null,null,null,null,null,null,null,null,null,null,null,null,null,null,null,null,null,null,null,null,null,null,null,null,null,null,null,null,null,null,null,null,null,null,null,null,null,null,null,null,null,null,null,null,null,null,null,null,null,null,null,null,null,null,null,null,null,null,null,null,null,null,"   ",null,null,null,null,null,null,"   ",null,null,null,null,null,null,"   ",null,null,null,null,null,null,null,null,null,null,null,null,null,null,null,null,"   ",null,null,null,null,null,null,"   ",null,null,null,null,null,null,"   "]
[null,null,null,null,null,null,null,null,null,null,null,null,null,null,null,null,null,null,null,null,null,null,null,null,null,null,null,null,null,null,null,null,null,null,null,null,null,null,null,null,null,null,null,null,null,null,null,null,null,null,null,null,null,null,null,null,null,null,null,null,null,null,null,null,null,null,null,null,null,null,null,null,null,null,null,null,null,null,null,null,null,null,null,null,null,null,null,null,null,null,null,null,null,null,null,null,null,null,null,null,null,null,null,null,null,null,null,null,null,null,null,null,null,null,null,null,null,null,null,null,null,null,null,null,null,null,null,null,null,null,null,null,null,null,null,null,null,null,null,null,null,null,null,null,null,null,null,null,null,null,null,"※",null,null,null,"注文金額",null,null,null,null,"当 初 金 額",null,null,null,null,null,null,null,null,null,null,null,null,null,null,null,null,null,"",null,null,null,null,null,null,null,null,null,"",null,null,null,null,null,null,null,null,null,""]
[null,null,null,null,null,null,null,null,null,null,null,null,null,null,null,null,null,null,null,null,null,null,null,null,null,null,null,null,null,null,null,null,null,null,null,null,null,null,null,null,null,null,null,null,null,null,null,null,null,null,null,null,null,null,null,null,null,null,null,null,null,null,null,null,null,null,null,null,null,null,null,null,null,null,null,null,null,null,null,null,null,null,null,null,null,null,null,null,null,null,null,null,null,null,null,null,null,"   ",null,null,null,null,null,null,"   ",null,null,null,null,null,null,"   ",null,null,null,null,null,null,null,null,null,null,null,null,null,null,null,null,"   ",null,null,null,null,null,null,"   ",null,null,null,null,null,null,"   "]
[null,null,null,null,null,null,null,null,null,null,null,null,null,null,null,null,null,null,null,null,null,null,null,null,null,null,null,null,null,null,null,null,null,null,null,null,null,null,null,null,null,null,null,null,null,null,null,null,null,null,null,null,null,null,null,null,null,null,null,null,null,null,null,null,null,null,null,null,null,null,null,null,null,null,null,null,null,null,null,null,null,null,null,null,null,null,null,null,null,null,null,null,null,null,null,null,null,null,null,null,null,null,null,null,null,null,null,null,null,null,null,null,null,null,null,null,null,null,null,null,null,null,null,null,null,null,null,null,null,null,null,null,null,null,null,null,null,null,null,null,null,null,null,null,null,null,null,null,null,null,null,null,null,null,null,null,null,null,null,null,"変 更 金 額",null,null,null,null,null,null,null,null,null,null,null,null,null,null,null,null,null,"",null,null,null,null,null,null,null,null,null,"",null,null,null,null,null,null,null,null,null,""]
[null,null,null,null,null,null,null,null,null,null,null,null,null,null,null,null,null,null,null,null,null,null,null,null,null,null,null,null,null,null,null,null,null,null,null,null,null,null,null,null,null,null,null,null,null,null,null,null,null,null,null,null,null,null,null,null,null,null,null,null,null,null,null,null,null,null,null,null,null,null,null,null,null,null,null,null,null,null,null,null,null,null,null,null,null,null,null,null,null,null,null,null,null,null,null,null,null,"   ",null,null,null,null,null,null,"   ",null,null,null,null,null,null,"   ",null,null,null,null,null,null,null,null,null,null,null,null,null,null,null,null,"   ",null,null,null,null,null,null,"   ",null,null,null,null,null,null,"   "]
[null,null,null,null,null,null,null,null,null,null,null,null,null,null,null,null,null,null,null,null,null,null,null,null,null,null,null,null,null,null,null,null,null,null,null,null,null,null,null,null,null,null,null,null,null,null,null,null,null,null,null,null,null,null,null,null,null,null,null,null,null,null,null,null,null,null,null,null,null,null,null,null,null,null,null,null,null,null,null,null,null,null,null,null,null,null,null,null,null,null,null,null,null,null,null,null,null,null,null,null,null,null,null,null,null,null,null,null,null,null,null,null,null,null,null,null,null,null,null,null,null,null,null,null,null,null,null,null,null,null,null,null,null,null,null,null,null,null,null,null,null,null,null,null,null,null,null,null,null,null,null,null,null,null,null,null,null,null,null,null,"現 在 金 額",null,null,null,null,null,null,null,null,null,null,null,null,null,null,null,null,null,"",null,null,null,null,null,null,null,null,null,"",null,null,null,null,null,null,null,null,null,""]
[null,null,null,null,null,null,null,null,null,null,null,null,null,null,null,null,null,null,null,null,null,null,null,null,null,null,null,null,null,null,null,null,null,null,null,null,null,null,null,null,null,null,null,null,null,null,null,null,null,null,null,null,null,null,null,null,null,null,null,null,null,null,null,null,null,null,null,null,null,null,null,null,null,null,null,null,null,null,null,null,null,null,null,null,null,null,null,null,null,null,null,null,null,null,null,null,null,"   ",null,null,null,null,null,null,"   ",null,null,null,null,null,null,"   ",null,null,null,null,null,null,null,null,null,null,null,null,null,null,null,null,"   ",null,null,null,null,null,null,"   ",null,null,null,null,null,null,"   "]
[null,null,null,null,null,null,null,null,null,null,null,null,null,null,null,null,null,null,null,null,null,null,null,null,null,null,null,null,null,null,null,null,null,null,null,null,null,null,null,null,null,null,null,null,null,null,null,null,null,null,null,null,null,null,null,null,null,null,null,null,null,null,null,null,null,null,null,null,null,null,null,null,null,null,null,null,null,null,null,null,null,null,null,null,null,null,null,null,null,null,null,null,null,null,null,null,null,null,null,null,null,null,null,null,null,null,null,null,null,null,null,null,null,null,null,null,null,null,null,null,null,null,null,null,null,null,null,null,null,null,null,null,null,null,null,null,null,null,null,null,null,null,null,null,null,null,null,null,null,null,null,null,null,null,null,"\nA．累計　出来高金額",null,null,null,null,null,null,null,null,null,null,null,null,null,null,null,null,null,null,null,null,null,null,"   ",null,null,null,null,null,null,null,null,null,"   ",null,null,null,null,null,null,null,null,null,"(",null,"",null,null,null,null,"%)"]
[null,null,null,null,null,null,null,null,null,null,null,null,null,null,null,null,null,null,null,null,null,null,null,null,null,null,null,null,null,null,null,null,null,null,null,null,null,null,null,null,null,null,null,null,null,null,null,null,null,null,null,null,null,null,null,null,null,null,null,null,null,null,null,null,null,null,null,null,null,null,null,null,null,null,null,null,null,null,null,null,null,null,null,null,null,null,null,null,null,null,null,null,null,null,null,null,null,"   ",null,null,null,null,null,null,"   ",null,null,null,null,null,null,"   ",null,null,null,null,null,null,null,null,null,null,null,null,null,null,null,null,"   ",null,null,null,null,null,null,"   ",null,null,null,null,null,null,"   ",null,null,null,null,null,null,null,null,null,null,null,null,null,null,null,null,null,null,null,null,null,null,null,null,null,null,null,null,null,null,null,null,null,null,null,"   ",null,null,null,null,null,null,null,null,null,"   ",null,null,null,null,null,null,null,null,null,""]
[]
[null,null,null,null,null,null,null,null,null,null,null,null,null,null,null,null,null,null,null,null,null,null,null,null,null,null,null,null,null,null,null,null,null,null,null,null,null,null,null,null,null,null,null,null,null,null,null,null,null,null,null,null,null,null,null,null,null,null,null,null,null,null,null,null,null,null,null,null,null,null,null,null,null,null,null,null,null,null,null,null,null,null,null,null,null,null,null,null,null,null,null,null,null,null,null,null,null,"   ",null,null,null,null,null,null,"   ",null,null,null,null,null,null,"   ",null,null,null,null,null,null,null,null,null,null,null,null,null,null,null,null,"   ",null,null,null,null,null,null,"   ",null,null,null,null,null,null,"   ",null,null,null,null,null,null,null,null,null,null,null,null,"B．     A × 90  %",null,null,null,null,null,null,null,null,null,null,null,null,null,null,null,null,null,null,null,null,null,null,"",null,null,null,null,null,null,null,null,null,"",null,null,null,null,null,null,null,null,null,""]
[]
[null,null,null,null,null,null,"計",null,null,null,null,null,null,null,null,null,null,null,null,null,null,null,null,null,null,null,null,null,null,null,null,null,null,null,null,null,null,null,null,null,null,null,null,null,null,null,null,null,null,null,null,null,null,null,null,null,null,null,null,null,null,null,null,null,null,null,null,null,null,null,null,null,null,null,null,null,null,null,null,null,null,null,null,null,null,null,null,null,null,null,null,null,null,null,null,null,null,"   ",null,null,null,null,null,null,"   ",null,null,null,null,null,null,"",null,null,null,null,null,null,null,null,null,null,null,null,null,null,null,null,"   ",null,null,null,null,null,null,"   ",null,null,null,null,null,null,"",null,null,null,null,null,null,"A",null,null,null,null,null,"C．既 受 入 金 額",null,null,null,null,null,null,null,null,null,null,null,null,null,null,null,null,null,null,null,null,null,null,"△",null,null,"   ",null,null,null,null,null,null,"   ",null,null,null,null,null,null,null,null,null,"   "]
[]
[null,null,null,"工　事　コ　ー　ド",null,null,null,null,null,null,null,null,null,null,null,null,null,null,null,null,null,null,null,null,null,null,null,null,null,null,null,null,null,null,null,"工種コード",null,null,null,null,null,null,null,null,null,null,null,null,null,null,null,null,null,null,null,null,null,null,null,"摘　要",null,null,null,null,null,null,null,null,null,null,null,null,null,null,null,null,null,null,null,"金　　　　　額",null,null,null,null,null,null,null,null,null,null,null,null,null,null,null,null,null,null,null,null,null,null,null,null,null,null,null,null,null,null,null,null,null,null,null,null,null,null,"科目コード",null,null,null,null,null,null,null,null,null,null,null,null,null,null,null,null,null,"非課税",null,null,null,null,null,null,null,null,null,"取消",null,null,null,null,null,null,null,null,"D．当 月 請 求 額",null,null,null,null,null,null,null,null,null,null,null,null,null,null,null,null,null,null,null,null,null,null,"",null,null,null,null,null,null,null,null,null,"",null,null,null,null,null,null,null,null,null,""]
["①",null,null," ",null,null,null," ",null,null,null," ",null,null,null," ",null,null,null," ",null,null,null," ",null,null,null," ",null,null,null,null,null,null,null," ",null,null,null," ",null,null,null," ",null,null,null," ",null,null,null," ",null,null,null,null,null,null,null," ",null,null,null," ",null,null,null," ",null,null,null,null,null,null,null,null,null,null,null," ",null,null,null," ",null,null,null," ",null,null,null," ",null,null,null," ",null,null,null," ",null,null,null," ",null,null,null," ",null,null,null," ",null,null,null,null,null,null," ",null,null,null," ",null,null,null," ",null,null,null," ",null,null,null,null,null,null,null," ",null,null,null,null,null,null,null," "]
[]
[null,null,null,null,null,null,null,null,null,null,null,null,null,null,null,null,null,null,null,null,null,null,null,null,null,null,null,null,null,null,null,null,null,null,null,null,null,null,null,null,null,null,null,null,null,null,null,null,null,null,null,null,null,null,null,null,null,null,null,null,null,null,null,null,null,null,null,null,null,null,null,null,null,null,null,null,null,null,null,null,null,null,null,null,null,null,null,null,null,null,null,null,null,null,null,null,null,null,null,null,null,null,null,null,null,null,null,null,null,null,null,null,null,null,null,null,null,null,null,null,null,null,null,null,null,null,null,null,null,null,null,null,null,null,null,null,null,null,null,null,null,null,null,null,null,null,null,null,null,null,null,null,null,null,null,"査　定　日",null,null,null,null,null,null,null,null,null,null,null,null,null,null,null,null,null,null,null,null,null,null,null,null,null,null,null,null,null,null,null,null,null,"月",null,null,null,null,null,null,null,null,null,null,null,null,null,null,"日"]
["②",null,null," ",null,null,null," ",null,null,null," ",null,null,null," ",null,null,null," ",null,null,null," ",null,null,null," ",null,null,null,null,null,null,null," ",null,null,null," ",null,null,null," ",null,null,null," ",null,null,null," ",null,null,null,null,null,null,null," ",null,null,null," ",null,null,null," ",null,null,null,null,null,null,null,null,null,null,null," ",null,null,null," ",null,null,null," ",null,null,null," ",null,null,null," ",null,null,null," ",null,null,null," ",null,null,null," ",null,null,null," ",null,null,null,null,null,null," ",null,null,null," ",null,null,null," ",null,null,null," ",null,null,null,null,null,null,null," ",null,null,null,null,null,null,null," "]
[null,null,null,null,null,null,null,null,null,null,null,null,null,null,null,null,null,null,null,null,null,null,null,null,null,null,null,null,null,null,null,null,null,null,null,null,null,null,null,null,null,null,null,null,null,null,null,null,null,null,null,null,null,null,null,null,null,null,null,null,null,null,null,null,null,null,null,null,null,null,null,null,null,null,null,null,null,null,null,null,null,null,null,null,null,null,null,null,null,null,null,null,null,null,null,null,null,null,null,null,null,null,null,null,null,null,null,null,null,null,null,null,null,null,null,null,null,null,null,null,null,null,null,null,null,null,null,null,null,null,null,null,null,null,null,null,null,null,null,null,null,null,null,null,null,null,null,null,null,null,null,null,null,null,null,"立替金・支給材等控除",null,null,null,null,null,null,null,null,null,null,null,null,null,null,null,null,null,null,null,null,null,null," 無・有 (",null,null,null,null,null,null,null,null,null,null,null,null,null,null,null,null,null,null,null,null,null,null,null,null,null,null,")"]
[]
["③",null,null," ",null,null,null," ",null,null,null," ",null,null,null," ",null,null,null," ",null,null,null," ",null,null,null," ",null,null,null,null,null,null,null," ",null,null,null," ",null,null,null," ",null,null,null," ",null,null,null," ",null,null,null,null,null,null,null," ",null,null,null," ",null,null,null," ",null,null,null,null,null,null,null,null,null,null,null," ",null,null,null," ",null,null,null," ",null,null,null," ",null,null,null," ",null,null,null," ",null,null,null," ",null,null,null," ",null,null,null," ",null,null,null,null,null,null," ",null,null,null," ",null,null,null," ",null,null,null," ",null,null,null,null,null,null,null," ",null,null,null,null,null,null,null," "]
[null,null,null,null,null,null,null,null,null,null,null,null,null,null,null,null,null,null,null,null,null,null,null,null,null,null,null,null,null,null,null,null,null,null,null,null,null,null,null,null,null,null,null,null,null,null,null,null,null,null,null,null,null,null,null,null,null,null,null,null,null,null,null,null,null,null,null,null,null,null,null,null,null,null,null,null,null,null,null,null,null,null,null,null,null,null,null,null,null,null,null,null,null,null,null,null,null,null,null,null,null,null,null,null,null,null,null,null,null,null,null,null,null,null,null,null,null,null,null,null,null,null,null,null,null,null,null,null,null,null,null,null,null,null,null,null,null,null,null,null,null,null,null,null,null,null,null,null,null,null,null,null,null,null,null,"担当課長",null,null,null,null,null,null,null,null,null,null,null,null,null,null,null,null,null,null,null,null,null,null,null,"係長・主任・担当者"]
[]
["④",null,null," ",null,null,null," ",null,null,null," ",null,null,null," ",null,null,null," ",null,null,null," ",null,null,null," ",null,null,null,null,null,null,null," ",null,null,null," ",null,null,null," ",null,null,null," ",null,null,null," ",null,null,null,null,null,null,null," ",null,null,null," ",null,null,null," ",null,null,null,null,null,null,null,null,null,null,null," ",null,null,null," ",null,null,null," ",null,null,null," ",null,null,null," ",null,null,null," ",null,null,null," ",null,null,null," ",null,null,null," ",null,null,null,null,null,null," ",null,null,null," ",null,null,null," ",null,null,null," ",null,null,null,null,null,null,null," ",null,null,null,null,null,null,null," "]
[]
[]
["⑤",null,null," ",null,null,null," ",null,null,null," ",null,null,null," ",null,null,null," ",null,null,null," ",null,null,null," ",null,null,null,null,null,null,null," ",null,null,null," ",null,null,null," ",null,null,null," ",null,null,null," ",null,null,null,null,null,null,null," ",null,null,null," ",null,null,null," ",null,null,null,null,null,null,null,null,null,null,null," ",null,null,null," ",null,null,null," ",null,null,null," ",null,null,null," ",null,null,null," ",null,null,null," ",null,null,null," ",null,null,null," ",null,null,null,null,null,null," ",null,null,null," ",null,null,null," ",null,null,null," ",null,null,null,null,null,null,null," ",null,null,null,null,null,null,null," "]
[null,null,null,null,null,null,null,null,null,null,null,null,null,null,null,null,null,null,null,null,null,null,null,null,null,null,null,null,null,null,null,null,null,null,null,null,null,null,null,null,null,null,null,null,null,null,null,null,null,null,null,null,null,null,null,null,null,null,null,null,null,null,null,null,null,null,null,null,null,null,null,null,null,null,null,null,null,null,null,null,null,null,null,null,null,null,null,null,null,null,null,null,null,null,null,null,null,null,null,null,null,null,null,null,null,null,null,null,null,null,null,null,null,null,null,null,null,null,null,null,null,null,null,null,null,null,null,null,null,null,null,null,null,null,null,null,null,null,null,null,null,null,null,null,null,null,null,null,null,null,null,null,null,null,null,null,null,"消費税"]
[]
["⑥",null,null," ",null,null,null," ",null,null,null," ",null,null,null," ",null,null,null," ",null,null,null," ",null,null,null," ",null,null,null,null,null,null,null," ",null,null,null," ",null,null,null," ",null,null,null," ",null,null,null," ",null,null,null,null,null,null,null," ",null,null,null," ",null,null,null," ",null,null,null,null,null,null,null,null,null,null,null," ",null,null,null," ",null,null,null," ",null,null,null," ",null,null,null," ",null,null,null," ",null,null,null," ",null,null,null," ",null,null,null," ",null,null,null,null,null,null," ",null,null,null," ",null,null,null," ",null,null,null," ",null,null,null,null,null,null,null," ",null,null,null,null,null,null,null," ",null,null,null,null,null,null,null,null,null,null," ",null,null,null," ",null,null,null," ",null,null,null," ",null,null,null," ",null,null,null," ",null,null,null," ",null,null,null," "]
[]
[]
[null,null,null,"手書きの場合は黒のボールペンで記入してください。",null,null,null,null,null,null,null,null,null,null,null,null,null,null,null,null,null,null,null,null,null,null,null,null,null,null,null,null,null,null,null,null,null,null,null,null,null,null,null,null,null,null,null,null,null,null,null,null,null,null,null,null,null,null,null,null,null,null,null,null,null,null,null,null,null,null,"合計",null,null,null,null,null,null,null,null,null,null,null,null,null,null,null,null,null,null,null,null,null,null,null,null,null,null,null,null,null,null,null,null,null,null,null,null,null,null,null,null,null,null,null,null,null,null,null,null,null,null,null,null,null,null,null,null,null,null,null,null,"非課税は１を記入"]
[]
[null,null,null,null,null,null,null,null,null,null,null,null,null,null,null,null,null,null,null,null,null,null,null,null,null,null,null,null,null,null,null,null,null,null,null,null,null,null,null,null,null,null,null,null,null,null,null,null,null,null,null,null,null,null,null,null,null,null,null,null,null,null,null,null,null,null,null,null,null,null,null,null,null,null,null,null,null,null,null,null,null,null,null,null,null,null,null,null,null,null,null,null,null,null,null,null,null,null,null,null,null,null,null,null,null,null,null,null,null,null,null,null,null,null,null,null,null,null,null,null,null,null,null,null,null,null,null,null,null,null,null,null,null,null,null,null,null,null,null,null,null,null,null,null,null,null,null,null,null,null,null,null,null,null,null,null,null,null,null,null,null,null,null,null,null,null,null,null,null,null,null,null,null,null,null,null,null,null,null,null,null,null,null,null,"②取引先控"]
[null,null,null,0,null,null,null,2,null,null,null,null,null,null,null," ",null,null,null," ",null,null,null," ",null,null,null," ",null,null,null," ",null,null,null," ",null,null,null," ",null,null,null,null,null,null,null,null,null,null,null,null,null,null,null,null,null,null,null,null,null,null,null,null,null,null,null,null,null,null,null,null,"請　求　書（　外　注　）",null,null,null,null,null,null,null,null,null,null,null,null,null,null,null,null,null,null,null,null,null,null,null,null,null,null,null,null,null,null,null,null,null,null,null,null,null,null,null,null,null,null,null,null,null,null,null,null,null,null,null,null,null,null,null,null,null,null,null,null,null,null,null,null,null,null,null,null,{"$f":"EL2&\"\"","v":" "},null,null,null,null,null,null,null,null,null,null,"T",null,null,null,{"$f":"FA2","v":" "},null,null,null,{"$f":"FE2","v":" "},null,null,null,{"$f":"FI2","v":" "},null,null,null,{"$f":"FM2","v":" "},null,null,null,{"$f":"FQ2","v":" "},null,null,null,{"$f":"FU2","v":" "},null,null,null,{"$f":"FY2","v":" "},null,null,null,{"$f":"GC2","v":" "},null,null,null,{"$f":"GG2","v":" "},null,null,null,{"$f":"GK2","v":" "},null,null,null,{"$f":"GO2","v":" "},null,null,null,{"$f":"GS2","v":" "},null,null,null,{"$f":"GW2","v":" "}]
[]
[null,null,null,"　　　　　　　　　　　　　\n下記の通り請求致します。",null,null,null,null,null,null,null,null,null,null,null,null,null,null,null,null,null,null,null,null,null,null,null,null,null,null,null,null,null,null,null,null,null,null,null,null,null,null,null,null,null,null,null,null,null,null,null,null,null,null,null,"※は必ずご記入ください。",null,null,null,null,null,null,null,null,null,null,null,null,null,null,null,null,null,null,null,null,null,null,null,null,null,null,null,null,null,null,null,null,null,null,null,null,null,null,null,null,null,null,null,null,null,null,null,null,null,null,null,null,null,null,null,null,null,null,null,null,null,null,null,null,null,null,null,null,null,null,null,null,null,"免税事業者は1を記入",null,null,null,null,null,null,null,null,null,null,null,null,null,null,null,null,null,null,null,null,null,null,"住所",null,null,null,null,null,"②取引先控"]
[null,null,null,null,null,null,null,null,null,null,null,null,null,null,null,null,null,null,null,null,null,null,null,null,null,null,null,null,null,null,null,null,null,null,null,null,null,null,null,null,null,null,null,null,null,null,null,null,null,null,null,null,null,null,"※(中村組担当者名：",null,null,null,null,null,null,null,null,null,null,null,null,null,null,null,null,null,null,null,null,null,null,null,null,null,{"$f":"CC5","v":0}]
[null,null,null,null,null,null,null,null,null,null,null,null,null,null,null,null,null,null,null,null,null,null,null,null,null,null,null,null,null,null,null,null,null,null,null,null,null,null,null,null,null,null,null,null,null,null,null,null,null,null,null,null,null,null,null,null,null,null,null,null,null,null,null,null,null,null,null,null,null,null,null,null,null,null,null,null,null,null,null,null,null,null,null,null,null,null,null,null,null,null,null,null,null,null,null,null,null,null,null,null,null,null,null,null,null,null,null,null,null,null,null,null,null,null,null,null,null,null,null,null,null,null,null,null,null,null,null,null,null,null,null,null,null,null,null,null,null,null,null,null,null,null,null,null,null,null,null,null,null,null,null,null,"社名"]
[null,null,null,"※請求年月日(西暦)",null,null,null,null,null,null,null,null,null,null,null,null,null,null,null,null,null,null,null,null,null,null,null,null,null,null,null,null,null,null,null,null,null,null,null,null,null,null,null,null,null,null,null,null,null,null,null,null,null,null,null,null,null,null,null,null,null,null,null,null,null,null,null,null,null,null,null,null,null,null,null,null,null,"※取引先コード",null,null,null,null,null,null,null,null,null,null,null,null,null,null,null,null,null,null,null,null,null,null,null,"※注文No."]
[null,null,null,{"$f":"D8&\"\"","v":" "},null,null,null,{"$f":"H8&\"\"","v":" "},null,null,null,{"$f":"L8&\"\"","v":" "},null,null,null,{"$f":"P8&\"\"","v":" "},null,null,null,"年",null,null,{"$f":"W8","v":" "},null,null,null,{"$f":"AA8","v":" "},null,null,null,"月",null,null,{"$f":"AH8","v":" "},null,null,null,{"$f":"AL8","v":" "},null,null,null,"日",null,null,null,null,null,null,null,null,null,null,null,null,null,null,null,null,null,null,null,null,null,null,null,null,null,null,null,null,null,null,null,null,null,null,null,{"$f":"BZ8","v":" "},null,null,null,{"$f":"CD8","v":" "},null,null,null,{"$f":"CH8","v":" "},null,null,null,{"$f":"CL8","v":" "},null,null,null,{"$f":"CP8","v":" "},null,null,null,null,null,null,null,{"$f":"CX8","v":" "},null,null,null,{"$f":"DB8","v":" "},null,null,null,{"$f":"DF8","v":" "},null,null,null,{"$f":"DJ8","v":" "},null,null,null,{"$f":"DN8","v":" "},null,null,null,null,null,null,null,null,null,null,null,null,null,null,null,null,null,null,null,null,null,null,null,null,null,null,null,null,null,null,null,null,null,null,"TEL"]
[]
[null,null,null,null,null,null,null,null,"※工事コード",null,null,null,null,null,null,null,null,null,null,null,null,null,null,null,null,null,null,null,null,null,null,null,null,null,null,null,null,null,null,null,null,null,null,null,null,null,null,null,null,null,null,null,null,null,null,null,null,null,null,null,null,null,null,null,null,null,null,null,null,null,null,null,null,null,null,null,null,null,null,null,null,null,null,null,null,null,null,null,null,null,null,null,null,null,null,null,null,null,null,null,null,null,null,null,null,null,null,null,null,null,null,null,null,null,null,null,null,null,null,null,null,null,null,null,null,null,null,null,null,null,null,null,null,null,null,null,null,null,null,null,null,null,null,null,null,null,null,null,null,null,null,null,null,null,null,null,"部門コード"]
[null,null,null,null,null,null,null,null,null,null,null,{"$f":"L11","v":" "},null,null,null,{"$f":"P11","v":" "},null,null,null,{"$f":"T11","v":" "},null,null,null,{"$f":"X11","v":" "},null,null,null,{"$f":"AB11","v":" "},null,null,null,{"$f":"AF11","v":" "},null,null,null,{"$f":"AJ11","v":" "},null,null,null,null,null,null,null,null,null,null,null,null,null,null,null,null,null,null,null,null,null,null,"※(工事名称：",null,null,null,null,null,null,null,null,null,null,null,null,null,null,null,null,{"$f":"BX11","v":0},null,null,null,null,null,null,null,null,null,null,null,null,null,null,null,null,null,null,null,null,null,null,null,null,null,null,null,null,null,null,null,null,null,null,null,null,null,null,null,null,null,null,null,null,null,null,null,null,null,"※",null,null,null,"適用",null,null,null,null,null,{"$f":"EF11","v":0},null,null,null,null,null,null,null,"%",null,null,null,null,null,null,null,null,null,null,null,null,{"$f":"FA11","v":" "},null,null,null,{"$f":"FE11","v":" "},null,null,null,{"$f":"FI11","v":" "},null,null,null,{"$f":"FM11","v":" "},null,null,null,null,null,null,null,null,null,null,null,null,null,null,null,{"$f":"GC11","v":0},null,null,null,null,null,null,null,null,null,null,null,null,null,null,null,null,null,null,null,null,null,null,null,")"]
[null,null,null,null,null,null,null,null,null,null,null,null,null,null,null,null,null,null,null,null,null,null,null,null,null,null,null,null,null,null,null,null,null,null,null,null,null,null,null,null,null,null,null,null,null,null,null,null,null,null,null,null,null,null,null,null,null,null,null,null,null,null,null,null,null,null,null,null,null,null,null,null,null,null,null,null,null,null,null,null,null,null,null,null,null,null,null,null,null,null,null,null,null,null,null,null,null,null,null,null,null,null,null,null,null,null,null,null,null,null,null,null,null,null,null,null,null,null,null,null,null,null,null,null,null,null,null,null,null,"税率"]
[null,null,null,"※当月課税分請求額(税抜) D",null,null,null,null,null,null,null,null,null,null,null,null,null,null,null,null,null,null,null,null,null,null,null,null,null,null,null,null,null,null,null,null,null,null,null,null,null,null,"※消費税",null,null,null,null,null,null,null,null,null,null,null,null,null,null,null,null,null,null,null,null,null,null,null,null,null,null,null,null,null,null,null,null,null,null,"※当月非課税分請求額",null,null,null,null,null,null,null,null,null,null,null,null,null,null,null,null,null,null,null,null,null,null,null,null,null,null,null,null,null,null,"※今回請求金額(税込)",null,null,null,null,null,null,null,null,null,null,null,null,null,null,null,null,null,null,null,null,null,null,null,null,null,null,null,null,null,null,null,null,null,null,null,null,null,null,null,null,null,null,null,null,null,null,null,"工種コード",null,null,null,null,null,null,null,null,null,null,null,null,null,null,null,null,null,null,null,null,null,null,"摘要"]
[null,null,null,{"$f":"D14","v":" "},null,null,null,{"$f":"H14","v":" "},null,null,null,{"$f":"L14","v":" "},null,null,null,{"$f":"P14","v":" "},null,null,null,{"$f":"T14","v":" "},null,null,null,{"$f":"X14","v":" "},null,null,null,{"$f":"AB14","v":" "},null,null,null,{"$f":"AF14","v":" "},null,null,null,{"$f":"AJ14&\"\"","v":" "},null,null,null,"+",null,null,{"$f":"AQ14","v":" "},null,null,null,{"$f":"AU14","v":" "},null,null,null,{"$f":"AY14","v":" "},null,null,null,{"$f":"BC14","v":" "},null,null,null,{"$f":"BG14","v":" "},null,null,null,{"$f":"BK14","v":" "},null,null,null,{"$f":"BO14","v":" "},null,null,null,{"$f":"BS14","v":" "},null,null,null,"+",null,null,{"$f":"BZ14","v":" "},null,null,null,{"$f":"CD14","v":" "},null,null,null,{"$f":"CH14","v":" "},null,null,null,{"$f":"CL14","v":" "},null,null,null,{"$f":"CP14","v":" "},null,null,null,{"$f":"CT14","v":" "},null,null,null,{"$f":"CX14","v":" "},null,null,null,"=",null,null,{"$f":"DE14","v":" "},null,null,null,{"$f":"DI14","v":" "},null,null,null,{"$f":"DM14","v":" "},null,null,null,{"$f":"DQ14","v":" "},null,null,null,{"$f":"DU14","v":" "},null,null,null,{"$f":"DY14","v":" "},null,null,null,{"$f":"EC14","v":" "},null,null,null,{"$f":"EG14","v":" "},null,null,null,{"$f":"EK14&\"\"","v":""},null,null,null,null,null,null,{"$f":"ER14","v":" "},null,null,null,null,null,null,null,null,{"$f":"FA14","v":" "},null,null,null,{"$f":"FE14","v":" "},null,null,null,{"$f":"FI14","v":" "},null,null,null,{"$f":"FM14","v":" "},null,null,null,{"$f":"FQ14","v":" "},null,null,null,null,null,null,{"$f":"FX14","v":" "},null,null,null,{"$f":"GB14","v":" "},null,null,null,{"$f":"GF14","v":" "},null,null,null,3]
[]
[null,null,null,null,null,null,null,null,null,null,null,null,null,null,null,null,null,null,null,null,null,null,null,null,null,null,null,null,null,null,null,null,null,null,null,null,null,null,null,null,null,null,null,null,null,null,null,null,null,null,null,null,null,null,null,null,null,null,null,null,null,null,null,null,null,null,null,null,null,null,null,null,null,null,null,null,null,null,null,null,null,null,null,null,null,null,null,null,null,null,null,null,null,null,null,null,null,null,null,null,null,null,null,null,null,null,null,null,null,null,null,null,null,null,null,null,null,null,null,null,null,null,null,null,null,null,null,null,null,null,null,null,null,null,null,null,null,null,null,null,null,null,null,null,null,null,null,null,null,null,null,null,null,null,null,null,"科目コード",null,null,null,null,null,null,null,null,null,null,null,null,null,null,null,null,null,null,null,null,null,null,"科目コード"]
[null,null,"※",null,null,null,"月日",null,null,null,null,null,null,null,null,"工　　事　　内　　容",null,null,null,null,null,null,null,null,null,null,null,null,null,null,null,null,null,null,null,null,null,null,null,null,null,null,null,null,null,null,null,null,null,null,null,null,null,null,null,null,null,null,null,null,null,null,null,null,null,null,null,null,"数　量",null,null,null,null,null,null,null,null,null,null,null,null,null,null,"単　価",null,null,null,null,null,null,null,null,null,null,null,null,null,"金　　額",null,null,null,null,null,null,null,null,null,null,null,null,null,null,null,null,null,null,null,null,"出来高数量%",null,null,null,null,null,null,null,null,null,"出来高金額",null,null,null,null,null,null,null,null,null,null,null,null,null,null,null,null,null,null,null,null,null,null,null,null,null,null,null,4,null,null,null,0,null,null,null,3,null,null,null,0,null,null,null,null,null,null,null,null,null,null,{"$f":"FX17","v":" "},null,null,null,{"$f":"GB17","v":" "},null,null,null,{"$f":"GF17","v":" "},null,null,null,{"$f":"GJ17","v":" "}]
[]
[null,null,null,null,null,null,{"$f":"G19","v":"00:00:00"},null,null,null,null,null,null,null,null,{"$f":"P19","v":0},null,null,null,null,null,null,null,null,null,null,null,null,null,null,null,null,null,null,null,null,null,null,null,null,null,null,null,null,null,null,null,null,null,null,null,null,null,null,null,null,null,null,null,null,null,null,null,null,null,null,null,null,{"$f":"BQ19&\"\"","v":""},null,null,null,null,null,null,null,null,null,null,null,null,null,null,{"$f":"CF19&\"\"","v":""},null,null,null,null,null,null,null,null,null,null,null,null,null,{"$f":"CT19","v":"   "},null,null,null,null,null,null,{"$f":"DA19","v":"   "},null,null,null,null,null,null,{"$f":"DH19","v":"   "},null,null,null,null,null,null,{"$f":"TEXT(DO19&\"\",\"0.0%\")","v":""},null,null,null,null,null,null,null,null,null,{"$f":"DY19","v":"   "},null,null,null,null,null,null,{"$f":"EF19","v":"   "},null,null,null,null,null,null,{"$f":"EM19","v":"   "}]
[null,null,null,null,null,null,null,null,null,null,null,null,null,null,null,null,null,null,null,null,null,null,null,null,null,null,null,null,null,null,null,null,null,null,null,null,null,null,null,null,null,null,null,null,null,null,null,null,null,null,null,null,null,null,null,null,null,null,null,null,null,null,null,null,null,null,null,null,null,null,null,null,null,null,null,null,null,null,null,null,null,null,null,null,null,null,null,null,null,null,null,null,null,null,null,null,null,null,null,null,null,null,null,null,null,null,null,null,null,null,null,null,null,null,null,null,null,null,null,null,null,null,null,null,null,null,null,null,null,null,null,null,null,null,null,null,null,null,null,null,null,null,null,null,null,null,null,null,null,null,null,"※",null,null,null,"注文金額",null,null,null,null,"当 初 金 額",null,null,null,null,null,null,null,null,null,null,null,null,null,null,null,null,null,{"$f":"FW20","v":""},null,null,null,null,null,null,null,null,null,{"$f":"GG20","v":""},null,null,null,null,null,null,null,null,null,{"$f":"GQ20","v":""}]
[null,null,null,null,null,null,{"$f":"G21","v":"00:00:00"},null,null,null,null,null,null,null,null,{"$f":"P21","v":0},null,null,null,null,null,null,null,null,null,null,null,null,null,null,null,null,null,null,null,null,null,null,null,null,null,null,null,null,null,null,null,null,null,null,null,null,null,null,null,null,null,null,null,null,null,null,null,null,null,null,null,null,{"$f":"BQ21&\"\"","v":""},null,null,null,null,null,null,null,null,null,null,null,null,null,null,{"$f":"CF21&\"\"","v":""},null,null,null,null,null,null,null,null,null,null,null,null,null,{"$f":"CT21","v":"   "},null,null,null,null,null,null,{"$f":"DA21","v":"   "},null,null,null,null,null,null,{"$f":"DH21","v":"   "},null,null,null,null,null,null,{"$f":"TEXT(DO21&\"\",\"0.0%\")","v":""},null,null,null,null,null,null,null,null,null,{"$f":"DY21","v":"   "},null,null,null,null,null,null,{"$f":"EF21","v":"   "},null,null,null,null,null,null,{"$f":"EM21","v":"   "}]
[null,null,null,null,null,null,null,null,null,null,null,null,null,null,null,null,null,null,null,null,null,null,null,null,null,null,null,null,null,null,null,null,null,null,null,null,null,null,null,null,null,null,null,null,null,null,null,null,null,null,null,null,null,null,null,null,null,null,null,null,null,null,null,null,null,null,null,null,null,null,null,null,null,null,null,null,null,null,null,null,null,null,null,null,null,null,null,null,null,null,null,null,null,null,null,null,null,null,null,null,null,null,null,null,null,null,null,null,null,null,null,null,null,null,null,null,null,null,null,null,null,null,null,null,null,null,null,null,null,null,null,null,null,null,null,null,null,null,null,null,null,null,null,null,null,null,null,null,null,null,null,null,null,null,null,null,null,null,null,null,"変 更 金 額",null,null,null,null,null,null,null,null,null,null,null,null,null,null,null,null,null,{"$f":"FW22","v":""},null,null,null,null,null,null,null,null,null,{"$f":"GG22","v":""},null,null,null,null,null,null,null,null,null,{"$f":"GQ22","v":""}]
[null,null,null,null,null,null,{"$f":"G23","v":"00:00:00"},null,null,null,null,null,null,null,null,{"$f":"P23","v":0},null,null,null,null,null,null,null,null,null,null,null,null,null,null,null,null,null,null,null,null,null,null,null,null,null,null,null,null,null,null,null,null,null,null,null,null,null,null,null,null,null,null,null,null,null,null,null,null,null,null,null,null,{"$f":"BQ23&\"\"","v":""},null,null,null,null,null,null,null,null,null,null,null,null,null,null,{"$f":"CF23&\"\"","v":""},null,null,null,null,null,null,null,null,null,null,null,null,null,{"$f":"CT23","v":"   "},null,null,null,null,null,null,{"$f":"DA23","v":"   "},null,null,null,null,null,null,{"$f":"DH23","v":"   "},null,null,null,null,null,null,{"$f":"TEXT(DO23&\"\",\"0.0%\")","v":""},null,null,null,null,null,null,null,null,null,{"$f":"DY23","v":"   "},null,null,null,null,null,null,{"$f":"EF23","v":"   "},null,null,null,null,null,null,{"$f":"EM23","v":"   "}]
[null,null,null,null,null,null,null,null,null,null,null,null,null,null,null,null,null,null,null,null,null,null,null,null,null,null,null,null,null,null,null,null,null,null,null,null,null,null,null,null,null,null,null,null,null,null,null,null,null,null,null,null,null,null,null,null,null,null,null,null,null,null,null,null,null,null,null,null,null,null,null,null,null,null,null,null,null,null,null,null,null,null,null,null,null,null,null,null,null,null,null,null,null,null,null,null,null,null,null,null,null,null,null,null,null,null,null,null,null,null,null,null,null,null,null,null,null,null,null,null,null,null,null,null,null,null,null,null,null,null,null,null,null,null,null,null,null,null,null,null,null,null,null,null,null,null,null,null,null,null,null,null,null,null,null,null,null,null,null,null,"現 在 金 額",null,null,null,null,null,null,null,null,null,null,null,null,null,null,null,null,null,{"$f":"FW24","v":""},null,null,null,null,null,null,null,null,null,{"$f":"GG24","v":""},null,null,null,null,null,null,null,null,null,{"$f":"GQ24","v":""}]
[null,null,null,null,null,null,{"$f":"G25","v":"00:00:00"},null,null,null,null,null,null,null,null,{"$f":"P25","v":0},null,null,null,null,null,null,null,null,null,null,null,null,null,null,null,null,null,null,null,null,null,null,null,null,null,null,null,null,null,null,null,null,null,null,null,null,null,null,null,null,null,null,null,null,null,null,null,null,null,null,null,null,{"$f":"BQ25&\"\"","v":""},null,null,null,null,null,null,null,null,null,null,null,null,null,null,{"$f":"CF25&\"\"","v":""},null,null,null,null,null,null,null,null,null,null,null,null,null,{"$f":"CT25","v":"   "},null,null,null,null,null,null,{"$f":"DA25","v":"   "},null,null,null,null,null,null,{"$f":"DH25","v":"   "},null,null,null,null,null,null,{"$f":"TEXT(DO25&\"\",\"0.0%\")","v":""},null,null,null,null,null,null,null,null,null,{"$f":"DY25","v":"   "},null,null,null,null,null,null,{"$f":"EF25","v":"   "},null,null,null,null,null,null,{"$f":"EM25","v":"   "}]
[null,null,null,null,null,null,null,null,null,null,null,null,null,null,null,null,null,null,null,null,null,null,null,null,null,null,null,null,null,null,null,null,null,null,null,null,null,null,null,null,null,null,null,null,null,null,null,null,null,null,null,null,null,null,null,null,null,null,null,null,null,null,null,null,null,null,null,null,null,null,null,null,null,null,null,null,null,null,null,null,null,null,null,null,null,null,null,null,null,null,null,null,null,null,null,null,null,null,null,null,null,null,null,null,null,null,null,null,null,null,null,null,null,null,null,null,null,null,null,null,null,null,null,null,null,null,null,null,null,null,null,null,null,null,null,null,null,null,null,null,null,null,null,null,null,null,null,null,null,null,null,null,null,null,null,"\nA．累計　出来高金額",null,null,null,null,null,null,null,null,null,null,null,null,null,null,null,null,null,null,null,null,null,null,null,null,null,null,null,null,null,null,null,null,null,null,null,null,null,null,null,null,null,null,"(",null,{"$f":"GS26","v":""},null,null,null,null,"%)"]
[null,null,null,null,null,null,{"$f":"G27","v":"00:00:00"},null,null,null,null,null,null,null,null,{"$f":"P27","v":0},null,null,null,null,null,null,null,null,null,null,null,null,null,null,null,null,null,null,null,null,null,null,null,null,null,null,null,null,null,null,null,null,null,null,null,null,null,null,null,null,null,null,null,null,null,null,null,null,null,null,null,null,{"$f":"BQ27&\"\"","v":""},null,null,null,null,null,null,null,null,null,null,null,null,null,null,{"$f":"CF27&\"\"","v":""},null,null,null,null,null,null,null,null,null,null,null,null,null,{"$f":"CT27","v":"   "},null,null,null,null,null,null,{"$f":"DA27","v":"   "},null,null,null,null,null,null,{"$f":"DH27","v":"   "},null,null,null,null,null,null,{"$f":"TEXT(DO27&\"\",\"0.0%\")","v":""},null,null,null,null,null,null,null,null,null,{"$f":"DY27","v":"   "},null,null,null,null,null,null,{"$f":"EF27","v":"   "},null,null,null,null,null,null,{"$f":"EM27","v":"   "},null,null,null,null,null,null,null,null,null,null,null,null,null,null,null,null,null,null,null,null,null,null,null,null,null,null,null,null,null,null,null,null,null,null,null,{"$f":"FW27","v":"   "},null,null,null,null,null,null,null,null,null,{"$f":"GG27","v":"   "},null,null,null,null,null,null,null,null,null,{"$f":"GQ27&\"\"","v":""}]
[]
[null,null,null,null,null,null,{"$f":"G29","v":"00:00:00"},null,null,null,null,null,null,null,null,{"$f":"P29","v":0},null,null,null,null,null,null,null,null,null,null,null,null,null,null,null,null,null,null,null,null,null,null,null,null,null,null,null,null,null,null,null,null,null,null,null,null,null,null,null,null,null,null,null,null,null,null,null,null,null,null,null,null,{"$f":"BQ29&\"\"","v":""},null,null,null,null,null,null,null,null,null,null,null,null,null,null,{"$f":"CF29&\"\"","v":""},null,null,null,null,null,null,null,null,null,null,null,null,null,{"$f":"CT29","v":"   "},null,null,null,null,null,null,{"$f":"DA29","v":"   "},null,null,null,null,null,null,{"$f":"DH29","v":"   "},null,null,null,null,null,null,{"$f":"TEXT(DO29&\"\",\"0.0%\")","v":""},null,null,null,null,null,null,null,null,null,{"$f":"DY29","v":"   "},null,null,null,null,null,null,{"$f":"EF29","v":"   "},null,null,null,null,null,null,{"$f":"EM29","v":"   "},null,null,null,null,null,null,null,null,null,null,null,null,"B．     A × 90  %",null,null,null,null,null,null,null,null,null,null,null,null,null,null,null,null,null,null,null,null,null,null,{"$f":"FW29","v":""},null,null,null,null,null,null,null,null,null,{"$f":"GG29","v":""},null,null,null,null,null,null,null,null,null,{"$f":"GQ29","v":""}]
[]
[null,null,null,null,null,null,"計",null,null,null,null,null,null,null,null,null,null,null,null,null,null,null,null,null,null,null,null,null,null,null,null,null,null,null,null,null,null,null,null,null,null,null,null,null,null,null,null,null,null,null,null,null,null,null,null,null,null,null,null,null,null,null,null,null,null,null,null,null,null,null,null,null,null,null,null,null,null,null,null,null,null,null,null,null,null,null,null,null,null,null,null,null,null,null,null,null,null,{"$f":"CT31","v":"   "},null,null,null,null,null,null,{"$f":"DA31","v":"   "},null,null,null,null,null,null,{"$f":"DH31&\"\"","v":""},null,null,null,null,null,null,{"$f":"TEXT(DO31&\"\",\"0.0%\")","v":""},null,null,null,null,null,null,null,null,null,{"$f":"DY31","v":"   "},null,null,null,null,null,null,{"$f":"EF31","v":"   "},null,null,null,null,null,null,{"$f":"EM31&\"\"","v":""},null,null,null,null,null,null,"A",null,null,null,null,null,"C．既 受 入 金 額",null,null,null,null,null,null,null,null,null,null,null,null,null,null,null,null,null,null,null,null,null,null,"△",null,null,{"$f":"FZ31","v":"   "},null,null,null,null,null,null,{"$f":"GG31","v":"   "},null,null,null,null,null,null,null,null,null,{"$f":"GQ31","v":"   "}]
[]
[null,null,null,null,null,null,null,null,null,null,null,null,null,null,null,null,null,null,null,null,null,null,null,null,null,null,null,null,null,null,null,null,null,null,null,null,null,null,null,null,null,null,null,null,null,null,null,null,null,null,null,null,null,null,null,null,null,null,null,null,null,null,null,null,null,null,null,null,null,null,null,null,null,null,null,null,null,null,null,null,null,null,null,null,null,null,null,null,null,null,null,null,null,null,null,null,null,null,null,null,null,null,null,null,null,null,null,null,null,null,null,null,null,null,null,null,null,null,null,null,null,null,null,null,null,null,null,null,null,null,null,null,null,null,null,null,null,null,null,null,null,null,null,null,null,null,null,null,null,null,null,null,null,null,null,"D．当 月 請 求 額",null,null,null,null,null,null,null,null,null,null,null,null,null,null,null,null,null,null,null,null,null,null,{"$f":"FW33","v":""},null,null,null,null,null,null,null,null,null,{"$f":"GG33","v":""},null,null,null,null,null,null,null,null,null,{"$f":"GQ33","v":""}]